bitfinex/quotes_SOLUSD_20251001
["timestamp","ask_amount","ask_price","bid_price","bid_amount"]
[1759326773725,26.03324549,218.61,218.6,35.66]
[1759326773908,26.03324549,218.61,218.6,68.9]
[1759326774933,13.87991715,218.6,218.55,0.71]
[1759326775145,13.87991715,218.6,218.56,33.22]
[1759326775436,0.28432314,218.6,218.57,0.71]
[1759326775603,0.14216157,218.61,218.58,33.22]
[1759326775809,0.14216157,218.61,218.59,0.71]
[1759326776004,18.4542733,218.61,218.6,33.24]
[1759326776208,26.03324549,218.61,218.6,33.24]
[1759326776422,21.45888934,218.61,218.6,33.24]
[1759326776832,26.03324549,218.61,218.6,33.24]
[1759326777135,21.45888934,218.61,218.6,33.24]
[1759326777514,13.87991715,218.61,218.6,33.95]
[1759326777928,13.87991715,218.61,218.6,33.24]
[1759326778236,0.28432314,218.59,218.56,0.71]
[1759326778435,0.28432314,218.59,218.57,33.93]
[1759326778643,7.57897219,218.62,218.57,33.93]
[1759326778814,13.87991715,218.62,218.58,0.71]
[1759326779014,13.87991715,218.62,218.59,33.93]
[1759326779311,13.59559401,218.63,218.6,0.71]
[1759326779529,13.59559401,218.63,218.61,33.22]
[1759326779738,0.28432314,218.62,218.61,33.22]
[1759326780222,13.87991715,218.62,218.61,33.93]
[1759326780418,0.28432314,218.62,218.61,33.93]
[1759326781014,13.59559401,218.65,218.61,33.93]
[1759326781334,13.59559401,218.65,218.62,0.71]
[1759326781538,0.14216157,218.66,218.63,0.71]
[1759326781737,0.14216157,218.66,218.64,33.93]
[1759326781934,11.4300441,218.73,218.64,33.93]
[1759326782234,132.1,218.74,218.64,33.93]
[1759326782235,13.59559401,218.7,218.65,0.71]
[1759326782438,0.72,218.75,218.65,0.71]
[1759326782439,11.62849741,218.76,218.65,0.71]
[1759326782628,4.57142857,218.75,218.67,20.8]
[1759326782948,13.59559401,218.72,218.68,33.22]
[1759326783237,13.59559401,218.72,218.69,0.71]
[1759326783443,13.59559401,218.74,218.7,0.71]
[1759326783621,13.59559401,218.74,218.71,33.93]
[1759326783932,13.59559401,218.74,218.72,0.71]
[1759326784740,13.59559401,218.74,218.71,33.22]
[1759326784741,0.14216157,218.74,218.71,33.22]
[1759326784912,0.14216157,218.73,218.71,33.22]
[1759326785112,13.59559401,218.72,218.71,33.22]
[1759326785317,13.59559401,218.72,218.71,33.93]
[1759326785520,13.73775558,218.73,218.71,33.93]
[1759326785814,0.14216157,218.73,218.71,33.22]
[1759326786031,13.59559401,218.75,218.72,5.28190397]
[1759326786340,13.59559401,218.75,218.73,0.71]
[1759326786541,0.2,218.76,218.74,33.93]
[1759326786922,13.79559401,218.76,218.74,33.22]
[1759326787112,13.79559401,218.76,218.74,33.93]
[1759326787455,18.65117747,218.76,218.75,33.22]
[1759326787636,21.86937777,218.76,218.75,33.22]
[1759326788152,13.79559401,218.76,218.75,33.22]
[1759326788344,14.07991715,218.76,218.75,33.22]
[1759326788553,18.65113675,218.76,218.75,33.22]
[1759326788732,14.07991715,218.76,218.75,33.93]
[1759326789239,21.86933705,218.76,218.75,33.22]
[1759326789438,0.28432314,218.75,218.72,20.8]
[1759326789751,17.09811745,218.74,218.69,35.68]
[1759326789926,17.09811745,218.74,218.7,33.22]
[1759326789927,3.2182003,218.72,218.7,33.22]
[1759326790121,3.50252344,218.71,218.69,35.68]
[1759326790351,3.50252344,218.7,218.69,35.68]
[1759326790854,3.50252344,218.7,218.69,68.9]
[1759326792050,0.28432314,218.73,218.69,69.61]
[1759326792344,4.85626649,218.73,218.7,0.71]
[1759326792550,4.85626649,218.73,218.71,33.2]
[1759326792936,0.28432314,218.7,218.69,35.68]
[1759326793252,0.28432314,218.7,218.69,68.88]
[1759326793253,17.09811745,218.7,218.69,68.88]
[1759326793646,0.28432314,218.68,218.61,0.71]
[1759326793831,3.36036187,218.62,218.58,36.37]
[1759326794148,0.14216157,218.6,218.59,33.2]
[1759326794532,0.14216157,218.6,218.59,33.91]
[1759326795253,0.14216157,218.6,218.59,33.2]
[1759326795745,0.14216157,218.59,218.58,35.66]
[1759326795947,0.14216157,218.59,218.58,68.86]
[1759326796551,18.45469184,218.59,218.58,68.86]
[1759326797055,13.87991715,218.59,218.58,68.86]
[1759326797243,13.59559401,218.59,218.58,69.57]
[1759326799357,0.28432314,218.62,218.58,69.57]
[1759326799657,13.59559401,218.67,218.59,0.66]
[1759326799846,0.28432314,218.66,218.6,33.2]
[1759326800153,0.28432314,218.66,218.61,0.66]
[1759326800355,13.87991715,218.64,218.62,33.2]
[1759326800542,13.87991715,218.64,218.63,33.2]
[1759326800862,0.28432314,218.64,218.63,33.2]
[1759326801148,0.28432314,218.64,218.59,0.66]
[1759326801358,5.36051948,218.64,218.6,33.2]
[1759326801732,0.28432314,218.64,218.6,33.86]
[1759326801931,5.36051948,218.64,218.6,33.2]
[1759326802457,13.87991715,218.62,218.61,0.66]
[1759326802758,13.87991715,218.62,218.61,33.86]
[1759326802954,13.87991715,218.62,218.61,33.2]
[1759326803460,0.28432314,218.62,218.61,33.88]
[1759326803631,0.28432314,218.62,218.61,33.2]
[1759326804135,18.1693419,218.64,218.61,33.2]
[1759326804136,0.28432314,218.63,218.61,33.2]
[1759326804350,13.87991715,218.62,218.61,0.68]
[1759326804534,13.87991715,218.62,218.61,33.88]
[1759326804736,0.28432314,218.62,218.61,33.88]
[1759326804944,0.67,218.7,218.61,33.88]
[1759326804945,0.28432314,218.67,218.61,33.88]
[1759326805142,13.87991715,218.67,218.62,0.68]
[1759326805338,13.87991715,218.67,218.63,33.2]
[1759326805339,18.67179035,218.64,218.63,33.2]
[1759326805560,18.95611349,218.64,218.63,33.2]
[1759326806056,13.87991715,218.64,218.63,33.2]
[1759326806262,18.95611349,218.64,218.63,33.2]
[1759326806461,23.52984199,218.64,218.63,33.2]
[1759326808256,13.87991715,218.63,218.58,35.66]
[1759326808448,0.28432314,218.61,218.59,33.2]
[1759326808651,0.28432314,218.61,218.6,0.68]
[1759326808866,13.59559401,218.63,218.6,0.68]
[1759326809037,0.28432314,218.62,218.61,0.68]
[1759326809232,0.28432314,218.62,218.61,33.88]
[1759326810158,18.45406407,218.62,218.61,33.2]
[1759326810942,18.45406407,218.62,218.58,36.34]
[1759326811274,18.45406407,218.62,218.59,33.2]
[1759326811442,18.45406407,218.62,218.58,35.66]
[1759326811443,13.87991715,218.59,218.58,35.66]
[1759326811634,13.87991715,218.59,218.58,68.86]
[1759326811838,13.87991715,218.59,218.58,33.2]
[1759326812037,18.45469184,218.59,218.58,33.2]
[1759326812249,13.87991715,218.59,218.58,33.2]
[1759326812452,4.85909783,218.59,218.58,33.2]
[1759326813264,4.85909783,218.59,218.55,21.48]
[1759326813439,13.87991715,218.59,218.56,54.68]
[1759326813646,13.87991715,218.59,218.57,0.68]
[1759326813857,13.87991715,218.64,218.58,0.68]
[1759326814063,23.52984199,218.64,218.59,33.2]
[1759326814262,18.16932251,218.64,218.6,0.68]
[1759326814447,13.59559401,218.65,218.61,0.68]
[1759326814642,13.59559401,218.65,218.62,33.88]
[1759326814643,23.24540945,218.65,218.62,33.88]
[1759326814850,13.59559401,218.67,218.63,33.88]
[1759326815045,13.59559401,218.67,218.64,33.88]
[1759326815365,13.59559401,218.7,218.65,33.88]
[1759326815549,0.28432314,218.69,218.66,33.2]
[1759326815752,0.28432314,218.69,218.66,33.88]
[1759326816146,4.85706873,218.69,218.66,33.2]
[1759326816347,4.57274559,218.69,218.66,33.2]
[1759326816665,0.14216157,218.68,218.66,33.2]
[1759326816844,0.28432314,218.68,218.66,33.2]
[1759326817282,0.28432314,218.68,218.66,33.88]
[1759326817568,0.28432314,218.68,218.66,33.2]
[1759326818077,5.07619634,218.71,218.67,0.68]
[1759326818271,13.59559401,218.7,218.68,0.68]
[1759326818582,13.59559401,218.7,218.66,37.77321226]
[1759326818583,13.59559401,218.71,218.66,25.0193129]
[1759326818880,0.28432314,218.7,218.66,25.0193129]
[1759326819442,13.59559401,218.72,218.66,25.0193129]
[1759326819784,20.89778144,218.75,218.67,33.2]
[1759326820078,2.20289978,218.74,218.67,33.2]
[1759326820276,13.73775558,218.72,218.67,37.77298594]
[1759326820478,13.73775558,218.72,218.68,0.68]
[1759326820681,0.14216157,218.71,218.65,21.48]
[1759326820976,13.73775558,218.68,218.66,33.2]
[1759326821174,2.34506135,218.68,218.67,33.2]
[1759326821405,0.14216157,218.67,218.63,0.68]
[1759326821578,13.73775558,218.66,218.64,33.2]
[1759326821780,15.79849379,218.66,218.64,33.2]
[1759326822279,0.14216157,218.65,218.62,35.68]
[1759326822577,0.14216157,218.65,218.63,33.2]
[1759326822790,0.14216157,218.65,218.62,35.68]
[1759326822950,0.14216157,218.63,218.62,35.68]
[1759326823146,13.73775558,218.64,218.62,68.88]
[1759326823368,0.14216157,218.64,218.62,69.56]
[1759326823670,13.59559401,218.65,218.62,68.88]
[1759326823993,13.59559401,218.65,218.62,69.56]
[1759326824166,0.28432314,218.67,218.63,0.68]
[1759326824350,0.28432314,218.67,218.64,0.68]
[1759326824550,0.28432314,218.7,218.65,33.86]
[1759326824747,13.59559401,218.71,218.66,33.86]
[1759326824968,13.59559401,218.71,218.62,40.25396717]
[1759326824969,20.22796978,218.74,218.67,33.86]
[1759326825184,13.59559401,218.74,218.68,33.86]
[1759326825364,13.59559401,218.74,218.69,0.68]
[1759326825669,13.59559401,218.74,218.68,33.18]
[1759326825670,13.59559401,218.74,218.7,0.68]
[1759326825860,13.59559401,218.74,218.65,20.8]
[1759326825861,11.76239139,218.76,218.71,33.86]
[1759326826084,11.76239139,218.76,218.72,0.68]
[1759326826399,11.76239139,218.76,218.73,0.68]
[1759326826593,0.2,218.76,218.74,33.18]
[1759326826765,0.2,218.76,218.75,0.68]
[1759326826963,0.2,218.79,218.77,20.8]
[1759326827182,0.2,218.79,218.78,33.86]
[1759326828268,0.2,218.79,218.78,38.43080171]
[1759326828787,0.2,218.79,218.78,33.86]
[1759326829374,0.2,218.79,218.78,5.25080171]
[1759326829557,0.2,218.79,218.78,54.66]
[1759326829964,0.2,218.79,218.78,59.23080171]
[1759326830164,0.2,218.79,218.78,54.66]
[1759326830867,0.2,218.79,218.78,59.23080171]
[1759326831068,0.2,218.79,218.78,54.66]
[1759326831262,0.2,218.79,218.78,26.05080171]
[1759326831470,0.2,218.79,218.78,0.68]
[1759326831664,0.2,218.79,218.78,33.86]
[1759326831882,0.2,218.79,218.78,33.18]
[1759326832088,0.2,218.79,218.78,53.98]
[1759326832478,0.2,218.79,218.78,54.66]
[1759326833193,0.2,218.79,218.78,59.23080171]
[1759326834094,0.2,218.79,218.78,53.96]
[1759326834399,0.2,218.79,218.78,54.66]
[1759326834775,0.2,218.79,218.78,53.96]
[1759326835079,0.2,218.79,218.78,54.66]
[1759326835389,0.2,218.79,218.78,59.23080171]
[1759326836100,0.2,218.79,218.78,54.66]
[1759326836700,0.2,218.79,218.78,59.23080171]
[1759326839277,0.2,218.79,218.78,38.43080171]
[1759326840300,1e-08,218.79,218.78,38.43080171]
[1759326840501,0.2,218.83,218.81,20.8]
[1759326840675,0.2,218.83,218.82,73.36996618]
[1759326840872,0.2,218.85,218.82,73.36996618]
[1759326841102,0.2,218.86,218.85,20.8]
[1759326841398,0.2,218.92,218.85,53.96]
[1759326841606,0.2,218.92,218.86,0.7]
[1759326841803,0.2,218.92,218.9,20.8]
[1759326841977,0.2,218.92,218.91,33.14]
[1759326842174,0.2,218.92,218.9,20.8]
[1759326842378,0.2,218.92,218.91,33.14]
[1759326842582,0.9,218.92,218.82,51.63488163]
[1759326842803,0.7,218.91,218.86,4.56913095]
[1759326842980,0.7,218.9,218.89,20.8]
[1759326843184,0.7,218.9,218.89,53.94]
[1759326843497,0.2,218.92,218.89,53.94]
[1759326843673,0.7,218.91,218.89,53.94]
[1759326843874,0.7,218.9,218.85,20.8]
[1759326844103,0.7,218.9,218.82,35.64]
[1759326844104,0.7,218.89,218.86,33.14]
[1759326844299,0.7,218.88,218.86,33.14]
[1759326844601,0.7,218.88,218.87,33.14]
[1759326844809,0.7,218.87,218.82,35.64]
[1759326844978,0.7,218.86,218.83,33.14]
[1759326845501,0.28432314,218.88,218.83,33.14]
[1759326845704,0.7,218.87,218.83,33.14]
[1759326845888,0.7,218.86,218.83,33.14]
[1759326846200,0.28432314,218.88,218.83,33.14]
[1759326846201,4.85319755,218.88,218.83,33.14]
[1759326846511,0.7,218.87,218.83,33.14]
[1759326846803,4.85319755,218.88,218.83,33.14]
[1759326846804,0.7,218.86,218.83,33.14]
[1759326846995,0.7,218.85,218.83,33.14]
[1759326847197,0.7,218.84,218.83,33.14]
[1759326847403,13.87991715,218.83,218.82,35.64]
[1759326847703,19.64665828,218.83,218.82,35.64]
[1759326847904,19.64665828,218.83,218.82,68.78]
[1759326848086,14.57991715,218.83,218.82,68.78]
[1759326848402,19.64665828,218.83,218.82,68.78]
[1759326848585,14.57991715,218.83,218.82,68.78]
[1759326848789,0.7,218.87,218.82,68.78]
[1759326849386,18.86409873,218.89,218.82,74.04988109]
[1759326849588,0.28432314,218.88,218.82,74.04988109]
[1759326849885,0.28432314,218.88,218.82,74.04995291]
[1759326850096,0.28432314,218.88,218.82,73.34995291]
[1759326850692,0.28432314,218.88,218.82,68.78]
[1759326850894,4.56892219,218.87,218.82,68.78]
[1759326851202,13.59559401,218.87,218.82,68.78]
[1759326851504,13.59559401,218.85,218.83,33.14]
[1759326851805,13.87991715,218.86,218.83,33.14]
[1759326851983,13.59559401,218.88,218.83,33.14]
[1759326852190,0.98432314,218.87,218.83,33.14]
[1759326852383,0.7,218.86,218.83,33.14]
[1759326852801,2.34191401,218.87,218.83,33.14]
[1759326853014,5.55366565,218.85,218.83,33.14]
[1759326853213,11.42126182,218.89,218.84,0.7]
[1759326853214,0.28432314,218.88,218.84,0.7]
[1759326853502,0.28432314,218.88,218.82,35.64]
[1759326853503,4.85308707,218.88,218.85,33.14]
[1759326853708,5.55308707,218.88,218.86,33.14]
[1759326853880,4.85308707,218.88,218.86,33.14]
[1759326854078,13.59559401,218.89,218.86,33.14]
[1759326854484,0.98432314,218.88,218.86,33.14]
[1759326854684,0.98432314,218.88,218.82,40.20996147]
[1759326854685,13.87991715,218.86,218.82,35.64]
[1759326854900,2.05759087,218.84,218.83,33.12]
[1759326855187,0.28432314,218.86,218.83,38.38974556]
[1759326855384,0.28432314,218.87,218.83,33.82]
[1759326855604,13.87991715,218.87,218.83,33.12]
[1759326856104,0.7,218.86,218.83,33.12]
[1759326856791,0.28432314,218.87,218.83,33.12]
[1759326856996,13.59559401,218.88,218.84,0.7]
[1759326857199,13.59559401,218.88,218.85,33.12]
[1759326857402,13.87991715,218.9,218.85,33.82]
[1759326857592,18.44826363,218.9,218.85,33.82]
[1759326857797,18.44826363,218.9,218.85,33.12]
[1759326858009,18.44826363,218.9,218.85,33.82]
[1759326858310,0.28432314,218.9,218.85,33.12]
[1759326858620,0.28432314,218.9,218.86,0.7]
[1759326858948,18.36348501,218.92,218.87,53.92]
[1759326859213,19.06348501,218.92,218.88,33.12]
[1759326859388,0.7,218.91,218.85,25.36933973]
[1759326859586,0.7,218.91,218.86,33.12]
[1759326860014,15.65318488,218.88,218.85,20.8]
[1759326860194,2.05759087,218.88,218.86,33.12]
[1759326860508,3.05191401,218.88,218.87,33.12]
[1759326860709,13.87991715,218.88,218.87,33.12]
[1759326860902,0.28432314,218.88,218.87,33.12]
[1759326861291,13.87991715,218.88,218.87,33.12]
[1759326861711,13.87991715,218.88,218.82,56.195631]
[1759326862196,6.62627975,218.89,218.83,4.56974683]
[1759326862392,12.12860751,218.89,218.83,4.56974683]
[1759326862596,7.84424177,218.89,218.83,4.56974683]
[1759326862796,21.43983578,218.89,218.83,4.56974683]
[1759326863112,22.14983578,218.89,218.84,33.12]
[1759326863303,26.71853819,218.89,218.84,33.12]
[1759326863809,13.87991715,218.87,218.84,33.12]
[1759326864014,0.67,218.86,218.84,33.12]
[1759326864199,22.10983578,218.87,218.84,33.12]
[1759326864396,8.22991863,218.86,218.84,33.12]
[1759326865013,7.55991863,218.86,218.84,33.12]
[1759326865194,0.67,218.86,218.84,33.12]
[1759326865392,5.23913988,218.86,218.84,33.12]
[1759326865592,22.10983578,218.85,218.84,33.12]
[1759326865816,22.10983578,218.85,218.82,35.64]
[1759326866020,4.56913988,218.86,218.82,35.64]
[1759326866021,21.43983578,218.83,218.82,35.64]
[1759326866224,22.10983578,218.83,218.82,68.76]
[1759326866528,21.43983578,218.83,218.82,68.76]
[1759326867320,26.67959312,218.83,218.82,68.76]
[1759326868314,26.67959312,218.83,218.82,35.64]
[1759326868520,26.67959312,218.83,218.82,68.76]
[1759326868988,13.87991715,218.83,218.82,68.76]
[1759326869393,0.67,218.88,218.82,68.76]
[1759326869593,13.59559401,218.86,218.82,68.76]
[1759326870329,13.59559401,218.87,218.83,0.67]
[1759326870506,13.59559401,218.87,218.82,73.32994705]
[1759326870507,13.79559401,218.92,218.84,33.79]
[1759326870713,21.35551264,218.92,218.85,0.67]
[1759326870912,13.59559401,218.9,218.86,33.12]
[1759326871728,4.56812092,218.91,218.86,33.79]
[1759326872526,0.28432314,218.9,218.86,33.12]
[1759326873407,0.28432314,218.9,218.86,38.35904928]
[1759326873722,0.28432314,218.9,218.86,33.12]
[1759326873900,4.85271217,218.9,218.86,33.12]
[1759326874796,4.85262914,218.9,218.86,33.79]
[1759326875415,4.85262914,218.9,218.86,33.12]
[1759326875626,12.41254777,218.9,218.86,33.12]
[1759326875811,0.67,218.89,218.86,33.12]
[1759326876030,13.59559401,218.88,218.86,33.12]
[1759326876544,13.59559401,218.86,218.82,35.64]
[1759326876834,21.43983578,218.83,218.82,35.64]
[1759326877013,21.43983578,218.83,218.82,68.74]
[1759326878112,13.87991715,218.83,218.82,68.74]
[1759326879131,0.28432314,218.87,218.82,69.41]
[1759326879336,0.28432314,218.87,218.83,0.67]
[1759326879639,0.28432314,218.87,218.82,73.30981714]
[1759326879640,0.28432314,218.87,218.84,33.1]
[1759326879806,4.56832671,218.9,218.84,33.77]
[1759326880010,13.59559401,218.89,218.84,33.77]
[1759326880235,0.28432314,218.89,218.85,0.67]
[1759326880414,0.28432314,218.89,218.86,33.1]
[1759326881234,0.95432314,218.89,218.86,33.1]
[1759326881727,4.85282892,218.89,218.86,33.1]
[1759326882308,0.67,218.88,218.86,33.1]
[1759326882637,12.41274755,218.89,218.86,33.1]
[1759326883130,0.28432314,218.89,218.86,33.1]
[1759326883721,4.85289019,218.89,218.86,33.1]
[1759326884536,13.87991715,218.9,218.87,0.67]
[1759326884942,0.28432314,218.9,218.86,37.66910789]
[1759326885114,13.87991715,218.9,218.87,0.67]
[1759326885435,13.59559401,218.89,218.86,33.1]
[1759326885634,14.26559401,218.89,218.86,33.1]
[1759326885806,14.26559401,218.89,218.85,20.8]
[1759326886010,13.59559401,218.89,218.86,33.1]
[1759326886741,18.16410967,218.89,218.86,33.1]
[1759326887039,21.66282344,218.9,218.86,33.1]
[1759326887211,0.67,218.89,218.87,33.1]
[1759326887529,22.33282344,218.9,218.87,33.1]
[1759326887837,21.66282344,218.9,218.87,33.1]
[1759326888143,13.87991715,218.9,218.87,33.1]
[1759326888507,13.87991715,218.9,218.87,33.77]
[1759326889229,18.44827787,218.9,218.87,33.1]
[1759326889632,13.87991715,218.9,218.87,33.77]
[1759326889838,0.2,218.92,218.88,0.67]
[1759326890011,13.79559401,218.92,218.87,37.6689137]
[1759326890216,13.79559401,218.92,218.88,0.67]
[1759326890439,13.79559401,218.92,218.87,37.6689137]
[1759326890738,13.79559401,218.92,218.88,0.67]
[1759326890947,13.79559401,218.92,218.9,20.8]
[1759326891135,14.07991715,218.92,218.91,33.08]
[1759326892737,0.2,218.92,218.91,33.08]
[1759326894924,0.88,218.92,218.87,25.36885695]
[1759326895234,0.88,218.92,218.88,68.7]
[1759326895235,0.2,218.92,218.88,68.7]
[1759326895444,1.16432314,218.92,218.88,68.7]
[1759326895637,0.48432314,218.92,218.88,69.41]
[1759326896342,0.48432314,218.92,218.88,73.9787005]
[1759326896722,0.48432314,218.92,218.88,69.41]
[1759326897332,0.2,218.92,218.89,0.71]
[1759326897540,0.2,218.92,218.9,33.08]
[1759326897732,0.2,218.92,218.91,0.71]
[1759326898627,0.2,218.92,218.91,26.07808734]
[1759326899248,0.2,218.92,218.91,25.36808734]
[1759326899545,0.2,218.92,218.91,26.07808734]
[1759326900418,0.2,218.92,218.91,29.67234849]
[1759326900625,0.2,218.92,218.91,8.87234849]
[1759326901039,0.2,218.92,218.91,5.27808734]
[1759326901421,0.2,218.92,218.91,59.13808734]
[1759326901831,0.2,218.92,218.91,20.8]
[1759326902031,0.88,218.92,218.88,35.62]
[1759326902232,0.2,218.92,218.89,33.77]
[1759326902636,0.2,218.92,218.91,4.56808734]
[1759326902942,0.2,218.92,218.91,37.62808734]
[1759326903122,0.2,218.92,218.91,38.33808734]
[1759326903448,0.2,218.92,218.88,40.18865309]
[1759326903648,0.2,218.92,218.88,60.98865309]
[1759326903848,0.2,218.92,218.89,33.06]
[1759326904024,0.88,218.92,218.89,33.06]
[1759326904229,0.88,218.92,218.88,35.62]
[1759326904230,16.81020135,218.9,218.88,35.62]
[1759326904548,17.09452449,218.9,218.89,33.06]
[1759326904722,0.28432314,218.89,218.88,35.62]
[1759326904926,17.09452449,218.89,218.88,68.68]
[1759326905133,17.77452449,218.89,218.88,68.68]
[1759326906750,22.34302921,218.89,218.88,68.68]
[1759326907628,22.34302921,218.89,218.88,35.62]
[1759326907830,22.34302921,218.89,218.88,68.68]
[1759326908428,13.87991715,218.89,218.88,68.68]
[1759326908631,13.59559401,218.9,218.88,68.68]
[1759326908835,0.96432314,218.89,218.88,68.68]
[1759326909033,4.17893048,218.89,218.88,68.68]
[1759326909256,0.96432314,218.89,218.88,68.68]
[1759326909555,0.28432314,218.89,218.88,33.06]
[1759326909938,11.61938281,218.93,218.88,49.76049707]
[1759326909939,0.2,218.93,218.88,49.76049707]
[1759326910161,21.0,218.98,218.91,20.8]
[1759326910162,0.2,218.98,218.91,20.8]
[1759326910333,0.2,218.98,218.95,20.8]
[1759326910539,0.2,218.98,218.95,54.32]
[1759326911241,0.2,218.98,218.95,0.69]
[1759326911480,0.2,218.98,218.95,34.21]
[1759326911846,0.2,218.98,218.95,33.52]
[1759326912431,0.2,218.98,218.91,20.8]
[1759326912634,0.2,218.98,218.95,20.8]
[1759326912948,0.2,218.98,218.95,54.3]
[1759326914863,0.2,218.98,218.95,54.99]
[1759326915536,0.2,218.98,218.95,34.15]
[1759326917036,0.2,218.98,218.95,54.28]
[1759326917237,0.2,218.98,218.95,20.8]
[1759326917462,0.2,218.98,218.95,54.26]
[1759326917665,0.2,218.98,218.95,54.95]
[1759326918045,0.2,218.98,218.95,20.8]
[1759326918241,0.2,218.98,218.95,54.26]
[1759326919064,0.2,218.98,218.95,59.51725279]
[1759326919260,0.2,218.98,218.95,58.82725279]
[1759326919446,0.2,218.98,218.95,59.51725279]
[1759326919649,0.2,218.98,218.95,59.50725279]
[1759326920052,0.2,218.98,218.95,58.82725279]
[1759326921368,0.2,218.98,218.95,59.50725279]
[1759326921672,0.2,218.98,218.95,59.48725279]
[1759326922264,1e-08,218.96,218.95,59.48725279]
[1759326923063,0.2,218.98,218.95,70.90538478]
[1759326923278,0.2,218.98,218.96,0.68]
[1759326923449,0.2,218.98,218.97,33.4]
[1759326923652,0.2,218.98,218.97,54.87]
[1759326924469,0.2,219.01,218.97,54.87]
[1759326924660,0.2,219.01,218.98,0.69]
[1759326924860,0.2,219.01,218.99,34.05]
[1759326925058,0.2,219.01,219.0,4.56621004]
[1759326926279,0.2,219.01,219.0,58.72621004]
[1759326927081,0.2,219.01,219.0,59.41621004]
[1759326927272,1e-08,219.01,219.0,59.41621004]
[1759326927476,0.2,219.06,219.0,70.83173515]
[1759326927677,0.2,219.06,219.03,20.8]
[1759326927855,0.2,219.06,219.04,35.6]
[1759326928184,0.2,219.06,219.05,33.32]
[1759326929179,0.2,219.06,219.05,37.88516776]
[1759326930463,0.2,219.06,219.05,38.57516776]
[1759326931054,0.2,219.06,219.05,37.88516776]
[1759326931266,0.2,219.06,219.05,38.57516776]
[1759326931865,0.2,219.06,219.05,5.25516776]
[1759326932066,0.2,219.06,219.05,38.53516776]
[1759326932268,0.2,219.06,219.05,37.84516776]
[1759326932469,0.2,219.06,219.05,4.56516776]
[1759326932668,0.2,219.06,219.05,37.84516776]
[1759326933174,0.2,219.06,219.05,4.56516776]
[1759326933380,0.2,219.06,219.05,33.28]
[1759326933583,0.92,219.06,219.04,40.16537522]
[1759326933769,0.92,219.06,219.05,33.26]
[1759326934082,0.2,219.06,219.05,33.26]
[1759326935258,0.2,219.06,219.05,37.82516776]
[1759326935866,0.2,219.06,219.05,33.26]
[1759326936180,0.2,219.06,219.04,35.6]
[1759326936379,0.2,219.06,219.05,33.24]
[1759326937063,0.2,219.06,219.05,37.80516776]
[1759326937387,0.2,219.06,219.05,38.49516776]
[1759326938459,0.2,219.06,219.05,37.80516776]
[1759326938991,0.2,219.06,219.05,38.49516776]
[1759326939197,0.2,219.06,219.05,37.80516776]
[1759326939687,0.2,219.06,219.05,38.49516776]
[1759326940059,0.2,219.06,219.05,37.80516776]
[1759326940383,0.2,219.06,219.05,38.49516776]
[1759326940577,0.2,219.06,219.05,5.25516776]
[1759326940578,1e-08,219.06,219.05,5.25516776]
[1759326940779,1e-08,219.06,219.05,38.45516776]
[1759326941573,1e-08,219.06,219.05,37.76516776]
[1759326941881,1e-08,219.06,219.05,37.74516776]